bitfinex-derivatives/quotes_SOLF0:USTF0_20250706
["timestamp","ask_amount","ask_price","bid_price","bid_amount"]
[1751770713702,6.8029,146.96,146.93,6.8039]
[1751770713998,6.8029,146.96,146.93,9.17337778]
[1751770718503,6.8029,146.96,146.93,9.17335356]
[1751770719104,6.8029,146.96,146.94,6.8038]
[1751770719905,6.8029,146.96,146.93,6.8039]
[1751770720107,6.8029,146.96,146.93,2.36945356]
[1751770721507,6.8029,146.96,146.94,6.8038]
[1751770721712,6.8026,146.97,146.94,6.8038]
[1751770721901,8.84686582,146.96,146.93,2.36945356]
[1751770722100,2.36945356,146.99,146.95,6.8033]
[1751770722305,15.64961304,146.98,146.95,6.8033]
[1751770722512,8.84741304,146.97,146.95,6.8033]
[1751770722711,6.8022,146.98,146.95,6.8033]
[1751770722911,13.37927757,146.97,146.95,6.8033]
[1751770723111,6.8022,146.98,146.95,6.8033]
[1751770723313,13.37927752,146.97,146.95,6.8033]
[1751770723609,6.8022,146.98,146.95,6.8033]
[1751770723913,13.37857273,146.97,146.95,6.8033]
[1751770724216,9.17132943,146.98,146.95,6.8033]
[1751770724511,13.37873418,146.97,146.95,6.8033]
[1751770724810,9.17132943,146.98,146.95,6.8033]
[1751770725012,13.3787341,146.97,146.95,6.8033]
[1751770725209,9.17132943,146.98,146.95,6.8033]
[1751770725409,13.37981109,146.97,146.95,6.8033]
[1751770725611,6.8022,146.98,146.95,6.8033]
[1751770725811,13.37983722,146.97,146.95,6.8033]
[1751770726111,6.8022,146.98,146.95,6.8033]
[1751770726309,13.37984975,146.97,146.95,6.8033]
[1751770726508,6.8022,146.98,146.95,6.8033]
[1751770726716,13.37986295,146.97,146.95,6.8033]
[1751770726914,6.8022,146.98,146.95,6.8033]
[1751770727113,13.36938856,146.97,146.95,6.8033]
[1751770727413,6.8022,146.98,146.95,6.8033]
[1751770727614,13.36938948,146.97,146.95,6.8033]
[1751770727814,6.8022,146.98,146.95,6.8033]
[1751770728014,13.38045658,146.97,146.95,6.8033]
[1751770728214,6.8022,146.98,146.95,6.8033]
[1751770728416,13.38045944,146.97,146.95,6.8033]
[1751770728614,6.8022,146.98,146.95,6.8033]
[1751770728812,13.38956199,146.97,146.95,6.8033]
[1751770729012,6.8022,146.98,146.95,6.8033]
[1751770729214,13.38956199,146.97,146.95,6.8033]
[1751770729513,6.8022,146.98,146.95,6.8033]
[1751770729708,13.38956264,146.97,146.95,6.8033]
[1751770729908,6.8022,146.98,146.95,6.8033]
[1751770730109,8.85724828,146.97,146.95,6.8033]
[1751770730304,6.8022,146.98,146.95,6.8033]
[1751770730508,13.38954976,146.97,146.95,6.8033]
[1751770730711,6.8022,146.98,146.95,6.8033]
[1751770730912,8.85724812,146.97,146.95,6.8033]
[1751770731117,6.8022,146.98,146.95,6.8033]
[1751770731316,13.3895619,146.97,146.95,6.8033]
[1751770731518,6.8022,146.98,146.95,6.8033]
[1751770731816,13.40062769,146.97,146.95,6.8033]
[1751770732018,6.8022,146.98,146.95,6.8033]
[1751770732217,13.40062769,146.97,146.95,6.8033]
[1751770732413,6.8022,146.98,146.95,6.8033]
[1751770732614,13.40062915,146.97,146.95,6.8033]
[1751770732819,6.8022,146.98,146.95,6.8033]
[1751770733018,13.40973028,146.97,146.95,6.8033]
[1751770733315,6.8022,146.98,146.95,6.8033]
[1751770733517,13.40970396,146.97,146.95,6.8033]
[1751770733716,6.8022,146.98,146.95,6.8033]
[1751770733916,13.40863805,146.97,146.95,6.8033]
[1751770734117,6.8022,146.98,146.95,6.8033]
[1751770734314,13.40863796,146.97,146.95,6.8033]
[1751770734517,6.8022,146.98,146.95,6.8033]
[1751770734718,13.40863779,146.97,146.95,6.8033]
[1751770734918,6.8022,146.98,146.95,6.8033]
[1751770735118,13.40863779,146.97,146.95,6.8033]
[1751770735319,6.8022,146.98,146.95,6.8033]
[1751770735521,13.40866289,146.97,146.95,6.8033]
[1751770735719,6.8022,146.98,146.95,6.8033]
[1751770735910,13.40863713,146.97,146.95,6.8033]
[1751770736114,6.8022,146.98,146.95,6.8033]
[1751770736314,13.40863703,146.97,146.95,6.8033]
[1751770736514,6.8022,146.98,146.95,6.8033]
[1751770736814,13.40863686,146.97,146.95,6.8033]
[1751770737015,6.8022,146.98,146.95,6.8033]
[1751770737217,13.40863625,146.97,146.95,6.8033]
[1751770737517,6.8022,146.98,146.94,9.17252943]
[1751770737715,13.40863603,146.97,146.94,9.17252943]
[1751770737917,6.8022,146.98,146.94,9.17252943]
[1751770738118,13.40863603,146.97,146.94,9.17252943]
[1751770738418,6.8022,146.98,146.94,9.17252943]
[1751770738620,13.40863579,146.97,146.94,9.17252943]
[1751770738819,6.8022,146.98,146.94,9.17252943]
[1751770739113,13.40863579,146.97,146.94,9.17252943]
[1751770739314,9.17132943,146.98,146.94,9.17252943]
[1751770739509,13.40863557,146.97,146.94,9.17252943]
[1751770739722,9.17132943,146.98,146.94,9.17252943]
[1751770739917,13.40853453,146.97,146.94,9.17252943]
[1751770740120,9.17132943,146.98,146.95,6.8033]
[1751770740318,13.40851513,146.97,146.95,6.8033]
[1751770740518,9.17132943,146.98,146.95,6.8033]
[1751770740719,13.40848564,146.97,146.95,6.8033]
[1751770740922,9.17132943,146.98,146.95,6.8033]
[1751770741120,13.40851175,146.97,146.95,6.8033]
[1751770741417,9.17132943,146.98,146.95,6.8033]
[1751770741619,13.40854166,146.97,146.95,6.8033]
[1751770741917,9.17132943,146.98,146.95,6.8033]
[1751770742117,13.4085449,146.97,146.95,6.8033]
[1751770742318,9.17132943,146.98,146.95,6.8033]
[1751770742618,13.40859585,146.97,146.95,6.8033]
[1751770742819,9.17132943,146.98,146.95,6.8033]
[1751770743021,13.40859585,146.97,146.95,6.8033]
[1751770743320,9.17132943,146.98,146.95,6.8033]
[1751770743621,13.40859573,146.97,146.95,6.8033]
[1751770743922,9.17132943,146.98,146.95,6.8033]
[1751770744117,13.40859573,146.97,146.95,6.8033]
[1751770744317,9.17132943,146.98,146.95,6.8033]
[1751770744526,13.40859561,146.97,146.95,6.8033]
[1751770744723,9.17132943,146.98,146.95,6.8033]
[1751770744926,13.40859561,146.97,146.95,6.8033]
[1751770745123,9.17132943,146.98,146.95,6.8033]
[1751770745429,13.4093548,146.97,146.95,6.8033]
[1751770745614,9.17132943,146.98,146.95,6.8033]
[1751770745818,13.40968744,146.97,146.95,6.8033]
[1751770746018,9.17132943,146.98,146.95,6.8033]
[1751770746319,13.40971358,146.97,146.95,6.8033]
[1751770746518,9.17132943,146.98,146.95,6.8033]
[1751770746722,13.4097354,146.97,146.95,6.8033]
[1751770746915,9.17132943,146.98,146.95,6.8033]
[1751770747124,13.4097354,146.97,146.95,6.8033]
[1751770747319,9.17132943,146.98,146.95,6.8033]
[1751770747519,13.40981187,146.97,146.95,6.8033]
[1751770747719,9.17132943,146.98,146.95,6.8033]
[1751770747918,13.40982151,146.97,146.95,6.8033]
[1751770748121,9.17132943,146.98,146.95,6.8033]
[1751770748321,13.40985843,146.97,146.95,6.8033]
[1751770748522,9.17132943,146.98,146.95,6.8033]
[1751770748724,13.40982141,146.97,146.95,6.8033]
[1751770748924,9.17132943,146.98,146.95,6.8033]
[1751770749125,13.40982141,146.97,146.95,6.8033]
[1751770749325,9.17132943,146.98,146.95,6.8033]
[1751770749524,13.40982579,146.97,146.95,6.8033]
[1751770749730,9.17132943,146.98,146.95,6.8033]
[1751770749923,8.86642595,146.97,146.95,6.8033]
[1751770750222,9.17132943,146.98,146.95,6.8033]
[1751770750422,8.86645039,146.97,146.95,6.8033]
[1751770750618,9.17132943,146.98,146.95,6.8033]
[1751770750822,8.86642591,146.97,146.95,6.8033]
[1751770751028,9.17132943,146.98,146.95,6.8033]
[1751770751327,8.86645035,146.97,146.95,6.8033]
[1751770751530,9.17132943,146.98,146.95,6.8033]
[1751770751727,8.86642587,146.97,146.95,6.8033]
[1751770752025,9.17132943,146.98,146.95,6.8033]
[1751770752225,8.8664503,146.97,146.95,6.8033]
[1751770752428,9.17132943,146.98,146.95,6.8033]
[1751770752626,15.66882578,146.97,146.95,6.8033]
[1751770752928,6.8024,146.97,146.95,6.8033]
[1751770755632,4.54418989,146.96,146.95,6.8033]
[1751770755833,4.54418989,146.96,146.94,9.17262943]
[1751770756034,6.8024,146.97,146.94,9.17262943]
[1751770760543,6.8024,146.97,146.94,9.17279687]
[1751770763042,6.8024,146.97,146.94,6.8035]
[1751770763240,6.8024,146.97,146.94,9.17279687]
[1751770766749,6.8024,146.97,146.94,6.8035]
[1751770766951,6.8024,146.97,146.94,9.17279687]
[1751770776058,6.8024,146.97,146.94,6.8035]
[1751770776255,6.8024,146.97,146.94,9.17279687]
[1751770780563,2.36929687,146.97,146.92,45.86]
[1751770780764,2.36929687,146.97,146.92,48.22929687]
[1751770780954,2.36929687,146.97,146.93,2.36929687]
[1751770781158,9.44412471,147.0,146.93,2.36941634]
[1751770781159,15.66732105,146.96,146.93,2.36941634]
[1751770781358,6.8031,146.96,146.93,2.36941634]
[1751770782265,2.36941634,146.94,146.89,1.18427769]
[1751770782464,2.36941634,146.93,146.89,2.36941634]
[1751770782855,9.17341634,146.94,146.9,2.36941634]
[1751770783361,9.17291634,146.95,146.91,2.36941634]
[1751770783562,4.76671634,146.97,146.93,2.36941634]
[1751770783762,20.59864988,146.96,146.93,2.36941634]
[1751770783958,11.34454334,146.95,146.93,2.36941634]
[1751770784164,5.04937959,146.94,146.92,2.36941634]
[1751770784366,5.04937959,146.93,146.92,2.36941634]
[1751770785370,6.8033,146.95,146.92,2.36941634]
[1751770785563,10.1292498,146.94,146.92,2.36941634]
[1751770785863,6.8033,146.95,146.92,2.36941634]
[1751770786059,10.12705797,146.94,146.92,2.36941634]
[1751770786269,6.8033,146.95,146.92,2.36941634]
[1751770786463,5.41838266,146.94,146.92,2.36941634]
[1751770786664,6.8033,146.95,146.92,2.36941634]
[1751770786868,5.41838266,146.94,146.92,2.36941634]
[1751770787168,6.8033,146.95,146.92,2.36941634]
[1751770787369,5.41786262,146.94,146.92,2.36941634]
[1751770787669,6.8033,146.95,146.92,2.36941634]
[1751770787862,5.41786262,146.94,146.92,2.36941634]
[1751770788063,6.8033,146.95,146.92,2.36941634]
[1751770788272,5.41740865,146.94,146.92,2.36941634]
[1751770788569,6.8033,146.95,146.92,2.36941634]
[1751770788768,5.41740865,146.94,146.93,2.36941634]
[1751770788966,6.803,146.96,146.93,2.36941634]
[1751770789170,5.41714322,146.95,146.93,2.36941634]
[1751770789371,6.803,146.96,146.93,2.36941634]
[1751770789663,5.41670617,146.95,146.93,2.36941634]
[1751770789869,6.803,146.96,146.93,2.36941634]
[1751770790070,5.41670617,146.95,146.93,2.36941634]
[1751770790270,6.803,146.96,146.93,2.36941634]
[1751770790471,5.39079195,146.95,146.93,2.36941634]
[1751770790770,6.803,146.96,146.93,2.36941634]
[1751770790971,5.39079093,146.95,146.93,2.36941634]
[1751770791172,6.803,146.96,146.93,2.36941634]
[1751770791475,5.39059865,146.95,146.93,2.36941634]
[1751770791771,6.803,146.96,146.93,2.36941634]
[1751770791973,5.39059865,146.95,146.93,2.36941634]
[1751770792275,6.803,146.96,146.93,2.36941634]
[1751770792468,5.39043939,146.95,146.93,2.36941634]
[1751770792667,6.803,146.96,146.93,2.36941634]
[1751770792871,5.39043939,146.95,146.93,2.36941634]
[1751770793067,6.803,146.96,146.93,2.36941634]
[1751770796076,6.8034,146.95,146.91,6.8049]
[1751770796273,6.8034,146.95,146.92,2.36941634]
[1751770797378,2.36941634,146.94,146.9,48.22941634]
[1751770797773,5.40330308,146.93,146.9,45.86]
[1751770797969,2.36941634,146.94,146.9,45.86]
[1751770798175,6.8048,146.92,146.9,45.86]
[1751770799782,6.8048,146.92,146.9,48.22941634]
[1751770801280,6.8045,146.93,146.9,48.22941634]
[1751770801775,2.36941634,146.91,146.83,50.34992654]
[1751770801979,2.36941634,146.9,146.86,2.36941634]
[1751770802179,2.36941634,146.9,146.85,2.36941634]
[1751770802781,6.8063,146.89,146.86,9.17681634]
[1751770804882,9.17521634,146.9,146.87,6.807]
[1751770805180,2.36941634,146.9,146.84,195.12]
[1751770805381,2.36941634,146.9,146.86,2.36941634]
[1751770805578,6.8062,146.89,146.86,9.17661634]
[1751770805979,2.36941634,146.9,146.86,9.17661634]
[1751770806384,6.806,146.9,146.87,9.17641634]
[1751770809083,9.17481634,146.91,146.88,9.17591634]
[1751770809283,6.8054,146.91,146.88,9.17591634]
[1751770810476,6.8054,146.91,146.88,6.8065]
[1751770810680,6.8054,146.91,146.88,9.17591634]
[1751770811388,6.8057,146.9,146.84,195.1]
[1751770811588,6.8057,146.9,146.87,2.36941634]
[1751770812088,6.8054,146.91,146.88,2.36941634]
[1751770815986,4.7724,146.96,146.84,195.1]
[1751770816179,20.90469633,146.95,146.91,2.36941634]
[1751770816380,2.36941634,146.95,146.91,2.36941634]
[1751770816784,6.8046,146.93,146.91,2.36941634]
[1751770817191,6.804,146.94,146.91,2.36941634]
[1751770818792,6.8046,146.93,146.91,2.36941634]
[1751770822292,2.36941634,146.94,146.89,9.17521634]
[1751770822995,6.8048,146.92,146.89,9.17521634]
[1751770825696,4.7724,146.96,146.91,2.36941634]
[1751770825895,7.71283272,146.95,146.91,2.36941634]
[1751770826195,2.36941634,146.95,146.91,2.36941634]
[1751770827190,6.8039,146.94,146.91,2.36941634]
[1751770827397,6.8039,146.94,146.91,6.8049]
[1751770827596,7.14181634,146.96,146.92,2.36941634]
[1751770827797,5.34515953,146.95,146.92,2.36941634]
[1751770828097,6.8035,146.95,146.92,2.36941634]
[1751770828497,6.8035,146.95,146.92,9.17401634]
[1751770828694,4.76671634,146.97,146.93,2.36941634]
[1751770829395,60.13897312,146.98,146.94,2.36941634]
[1751770829597,5.3466701,146.97,146.94,2.36941634]
[1751770829788,60.13897312,146.98,146.94,2.36941634]
[1751770829988,5.34666473,146.97,146.94,2.36941634]
[1751770830194,6.8025,146.97,146.94,2.36941634]
[1751770835096,57.76955678,146.98,146.91,46.12]
[1751770835297,7.14511634,147.0,146.96,2.36941634]
[1751770835501,14.17462749,146.99,146.96,2.36941634]
[1751770835701,7.14511634,147.0,146.96,2.36941634]
[1751770835902,6.8022,146.98,146.96,2.36941634]
[1751770837603,6.8022,146.98,146.94,6.8034]
[1751770837803,6.8022,146.98,146.95,2.36941634]
[1751770838703,6.8022,146.98,146.95,9.17271634]
[1751770839404,6.8022,146.98,146.95,2.36941634]
[1751770839703,6.8022,146.98,146.96,2.36941634]
[1751770840305,6.8022,146.98,146.95,2.36941634]
[1751770840508,6.8022,146.98,146.95,9.17261634]
[1751770842211,9.17111634,146.99,146.96,6.8028]
[1751770842811,6.8017,146.99,146.96,9.17221634]
[1751770846012,6.8017,146.99,146.96,6.8028]
[1751770846310,6.8017,146.99,146.96,9.17221634]
[1751770852715,6.8017,146.99,146.97,6.8023]
[1751770856817,6.8017,146.99,146.96,9.17201634]
[1751770857019,11.5769,147.0,146.97,2.36941634]
[1751770857221,6.8012,147.0,146.97,2.36941634]
[1751770857519,6.8012,147.0,146.97,9.17141634]
[1751770863627,6.8006,147.01,146.98,9.17121634]
[1751770864531,6.8003,147.02,147.0,2.36941634]
[1751770864730,4.69344319,147.01,147.0,2.36941634]
[1751770864931,6.8003,147.02,147.0,2.36941634]
[1751770866132,6.7999,147.03,147.0,9.17041634]
[1751770866331,10.15037293,147.02,147.0,9.17041634]
[1751770866633,6.7999,147.03,147.0,9.17041634]
[1751770866932,10.15213282,147.02,147.0,9.17041634]
[1751770867235,6.7999,147.03,147.0,9.17041634]
[1751770867437,5.45881648,147.02,147.01,9.16991634]
[1751770867624,6.7993,147.04,147.01,9.16991634]
[1751770867928,10.15393424,147.03,147.02,2.36941634]
[1751770868931,5.45882065,147.03,147.02,2.36941634]
[1751770869131,6.7989,147.05,147.02,2.36941634]
[1751770869330,10.08384951,147.04,147.02,2.36941634]
[1751770869629,6.7989,147.05,147.02,9.16941634]
[1751770869827,10.08643039,147.04,147.02,9.16941634]
[1751770870033,6.7989,147.05,147.02,9.16941634]
[1751770870233,10.08453918,147.04,147.02,2.36941634]
[1751770870531,6.7989,147.05,147.02,2.36941634]
[1751770870728,10.08746595,147.04,147.02,2.36941634]
[1751770870934,6.7993,147.04,147.02,2.36941634]
[1751770872429,5.4191448,147.03,147.02,2.36941634]
[1751770873138,6.7993,147.04,147.02,2.36941634]
[1751770873834,6.7989,147.05,147.02,9.16941634]
[1751770874033,10.17270728,147.04,147.03,2.36941634]
[1751770876141,4.75288368,147.04,147.03,2.36941634]
[1751770876340,10.0943497,147.04,147.03,2.36941634]
[1751770876935,10.0943497,147.04,147.03,9.16901634]
[1751770877140,6.7986,147.06,147.03,9.16901634]
[1751770877342,10.09249674,147.05,147.03,9.16901634]
[1751770877543,6.7986,147.06,147.03,9.16901634]
[1751770877836,10.09249674,147.05,147.04,2.36941634]
[1751770878632,4.74620687,147.05,147.04,2.36941634]
[1751770879542,4.74620687,147.05,147.03,9.16901634]
[1751770879743,6.7986,147.06,147.03,9.16901634]
[1751770879935,4.74574715,147.05,147.03,9.16901634]
[1751770880137,6.7986,147.06,147.03,9.16901634]
[1751770880336,4.74511555,147.05,147.03,9.16901634]
[1751770880633,6.7986,147.06,147.03,9.16901634]
[1751770880830,4.74510358,147.05,147.03,9.16901634]
[1751770881042,6.7986,147.06,147.03,9.16901634]
[1751770881244,4.74452639,147.05,147.03,9.16901634]
[1751770881439,6.7986,147.06,147.03,9.16901634]
[1751770881644,4.74453299,147.05,147.03,9.16901634]
[1751770881845,6.7986,147.06,147.03,9.16901634]
[1751770882041,4.74453299,147.05,147.03,9.16901634]
[1751770882243,6.7986,147.06,147.03,9.16901634]
[1751770882442,4.75506983,147.05,147.03,9.16901634]
[1751770882641,6.7986,147.06,147.03,9.16901634]
[1751770882942,4.75509818,147.05,147.03,9.16901634]
[1751770883245,6.7986,147.06,147.03,9.16901634]
[1751770883440,4.75472603,147.05,147.03,9.16901634]
[1751770883739,6.7986,147.06,147.03,9.16901634]
[1751770883937,4.75472603,147.05,147.03,9.16901634]
[1751770884142,6.7987,147.05,147.03,2.36941634]
[1751770884342,6.7987,147.05,147.02,9.16931634]
[1751770888852,6.7984,147.06,147.03,2.36941634]
[1751770889752,6.7984,147.06,147.03,9.16881634]
[1751770890253,6.798,147.07,147.04,9.16841634]
[1751770890552,4.7555771,147.06,147.04,9.16841634]
[1751770890752,6.798,147.07,147.04,9.16841634]
[1751770891655,6.798,147.07,147.04,2.36941634]
[1751770892255,2.3188,147.08,147.0,4.7301]
[1751770892555,12.47742684,147.07,147.03,2.36941634]
[1751770892756,2.36941634,147.07,147.03,2.36941634]
[1751770892955,6.7986,147.06,147.03,2.36941634]
[1751770893455,6.7986,147.06,147.03,9.16891634]
[1751770896661,6.7986,147.06,147.04,2.36941634]
[1751770899358,6.7979,147.07,147.04,2.36941634]
[1751770899564,4.76933407,147.06,147.05,2.36941634]
[1751770901763,11.56753407,147.06,147.05,2.36941634]
[1751770902462,10.13990483,147.06,147.05,2.36941634]
[1751770903864,16.93810483,147.06,147.03,2.36941634]
[1751770904061,6.7982,147.06,147.03,2.36941634]
[1751770904764,6.7987,147.05,147.03,9.16901634]
[1751770906863,2.36941634,147.06,146.99,46.08]
[1751770907164,2.36917212,147.0,146.95,2.36917212]
[1751770907470,6.8011,147.0,146.97,6.8022]
[1751770907668,2.36917212,146.99,146.94,48.28917212]
[1751770907962,45.92,147.05,146.94,45.92]
[1751770907963,2.36917212,146.97,146.94,45.92]
[1751770908166,2.36917212,146.96,146.92,152.61121505]
[1751770908868,2.36917212,146.96,146.93,2.36917212]
[1751770909070,2.36917212,146.96,146.93,9.17307212]
[1751770909873,6.8026,146.97,146.93,6.8039]
[1751770910872,54.3274096,147.01,146.93,3.7027096]
[1751770911072,18.75465838,147.0,146.93,3.7027096]
[1751770911272,12.11517446,146.99,146.95,6.803]
[1751770911462,6.8016,146.99,146.95,6.803]
[1751770911867,54.3274096,147.01,146.93,3.7027096]
[1751770912069,54.3274096,147.01,146.95,3.7027096]
[1751770912070,9.88785561,147.0,146.95,3.7027096]
[1751770912270,54.3274096,147.01,146.95,3.7027096]
[1751770912470,16.68674017,147.0,146.96,6.8027]
[1751770912771,6.8013,147.0,146.96,6.8027]
[1751770916976,6.8013,147.0,146.95,6.8031]
[1751770917176,6.8015,146.99,146.95,6.8031]
[1751770917871,6.8008,147.01,146.94,3.7027096]
[1751770918070,6.1250096,147.03,146.96,3.7027096]
[1751770918266,9.8127078,147.02,146.96,3.7027096]
[1751770918481,6.8013,147.0,146.96,10.5054096]
[1751770920381,6.8013,147.0,146.97,6.8023]
[1751770920977,2.4223,147.03,146.98,3.7027096]
[1751770921379,6.8001,147.02,146.98,3.7027096]
[1751770921586,6.8001,147.02,146.98,10.5043096]
[1751770926885,52.8482,147.07,147.0,3.7027096]
[1751770927187,18.67451083,147.06,147.0,3.7027096]
[1751770927388,9.87861851,147.05,147.0,3.7027096]
[1751770927589,52.8482,147.07,147.0,3.7027096]
[1751770927886,18.67503432,147.06,147.0,3.7027096]
[1751770928086,6.7992,147.04,147.0,10.5034096]
[1751770930886,9.43615467,147.1,147.03,6.7993]
[1751770931189,21.09713837,147.09,147.04,3.7027096]
[1751770931384,18.71257626,147.08,147.04,3.7027096]
[1751770931580,16.703003,147.07,147.04,3.7027096]
[1751770931783,6.798,147.07,147.04,3.7027096]
[1751770933896,6.7983,147.06,147.03,6.7993]
[1751770934786,5.32461771,147.05,147.0,45.92]
[1751770934988,9.98800882,147.04,147.0,45.92]
[1751770935298,6.7995,147.04,147.01,6.8005]
[1751770936095,6.7997,147.03,147.01,6.8005]
[1751770936394,6.7997,147.03,147.0,52.7208]
[1751770940300,6.7994,147.04,147.01,6.8001]
[1751770940602,6.7994,147.04,147.0,49.6227096]
[1751770941203,6.7994,147.04,147.01,6.8003]
[1751770942496,6.7994,147.04,147.0,56.4235096]
[1751770945409,6.7994,147.04,147.0,56.41866322]
[1751770947701,6.7994,147.04,147.0,52.7208]
[1751770947907,13.13401789,147.07,147.0,45.92]
[1751770948102,3.699323,147.05,146.97,3.699323]
[1751770948309,18.81216745,147.04,146.97,3.699323]
[1751770948509,6.8004,147.02,146.99,6.8014]
[1751770950109,9.43615467,147.07,146.99,3.699323]
[1751770950310,21.22336614,147.06,147.01,3.699323]
[1751770950509,21.22336614,147.05,147.01,3.699323]
[1751770950716,18.82562022,147.04,147.01,3.699323]
[1751770950911,46.12,147.07,147.01,3.699323]
[1751770951105,21.23215677,147.06,147.01,3.699323]
[1751770951305,18.83393329,147.05,147.01,3.699323]
[1751770951505,25.63313329,147.04,147.01,10.499623]
[1751770951712,6.7992,147.04,147.01,10.499623]
[1751770951907,5.32308046,147.03,147.01,10.499623]
[1751770952109,6.7992,147.04,147.01,10.499623]
[1751770952311,5.3229436,147.03,147.01,10.499623]
[1751770952511,6.7992,147.04,147.01,10.499623]
[1751770952707,5.3229436,147.03,147.01,10.499623]
[1751770952913,6.7992,147.04,147.01,10.499623]
[1751770954215,46.12,147.07,146.96,50.9422]
[1751770954516,24.93463321,147.06,146.98,3.699323]
[1751770954703,21.23531021,147.05,146.98,3.699323]
[1751770954906,6.8,147.03,146.99,6.8012]
[1751770955114,5.32547574,147.02,146.99,6.8012]
[1751770955309,6.8,147.03,146.99,6.8012]
[1751770955514,6.7993,147.04,146.98,3.699323]
[1751770955716,18.84199501,147.03,146.98,3.699323]
[1751770955916,6.7993,147.04,146.98,3.699323]
[1751770956110,25.64173057,147.03,147.0,6.8007]
[1751770956311,5.32614271,147.02,146.98,3.699323]
[1751770956514,55.55615467,147.07,146.98,3.699323]
[1751770956710,6.7998,147.03,146.99,6.8012]
[1751770956910,9.98550086,147.02,146.99,6.8012]
[1751770957116,9.43615467,147.06,146.99,6.8012]
[1751770957311,21.2484113,147.05,146.99,6.8012]
[1751770957512,21.2484113,147.04,146.99,6.8012]
[1751770957818,6.8001,147.02,146.99,6.8012]
[1751770959920,9.43615467,147.06,147.0,3.699323]
[1751770960119,21.25670298,147.05,147.0,3.698129]
[1751770960321,18.85570728,147.04,147.0,3.698129]
[1751770960512,25.65560728,147.03,147.0,10.498929]
[1751770960716,6.7999,147.03,147.0,10.498929]
[1751770961322,5.33241242,147.02,147.0,10.498929]
[1751770961619,6.7999,147.03,147.0,10.498929]
[1751770961820,5.33241242,147.02,147.0,10.498929]
[1751770962019,6.7999,147.03,147.0,10.498929]
[1751770962221,9.99784366,147.02,147.0,10.498929]
[1751770962516,6.7999,147.03,147.0,6.8008]
[1751770962715,9.43615467,147.06,147.01,3.69842796]
[1751770963023,21.27706003,147.05,147.01,3.69842796]
[1751770963321,25.6730714,147.04,147.01,10.49862796]
[1751770963520,10.00004769,147.03,147.01,6.8002]
[1751770963722,9.43615467,147.07,146.96,50.9422]
[1751770963924,9.43615467,147.05,146.98,3.69915817]
[1751770964117,21.27982264,147.04,146.98,3.69915817]
[1751770964314,21.27982264,147.03,146.98,3.69915817]
[1751770964523,18.87641985,147.02,146.98,3.69915817]
[1751770964717,10.00132767,147.01,146.96,54.64135817]
[1751770965021,6.8001,147.02,146.99,6.8012]
[1751770965222,10.01404302,147.01,146.99,6.8012]
[1751770965421,6.8001,147.02,146.99,6.8012]
[1751770965621,10.01315373,147.01,146.99,6.8012]
[1751770965823,6.8001,147.02,146.99,6.8012]
[1751770966023,10.01668541,147.01,146.99,6.8012]
[1751770966223,6.8001,147.02,146.99,6.8012]
[1751770966425,10.0201013,147.01,146.99,6.8012]
[1751770966723,6.8001,147.02,146.99,6.8012]
[1751770966922,10.02011168,147.01,147.0,6.801]
[1751770969426,6.7994,147.04,147.0,6.801]
[1751770969626,21.25873237,147.03,147.0,6.801]
[1751770969820,18.85479683,147.02,146.96,54.64135817]
[1751770970019,9.99049201,147.01,146.96,54.64135817]
[1751770970314,6.7994,147.04,146.96,54.64135817]
[1751770970514,21.25899527,147.03,147.0,6.8006]
[1751770970718,18.85503088,147.02,147.0,6.8006]
[1751770970915,9.99061194,147.01,147.0,6.8006]
[1751770973923,9.99061194,147.01,146.98,3.69915817]
[1751770973924,9.99061194,147.01,146.96,50.9422]
[1751770974130,9.51223764,147.05,146.96,49.81915817]
[1751770974330,21.28109138,147.04,146.98,3.69915817]
[1751770974629,21.28109138,147.03,147.0,6.8009]
[1751770974829,18.87608305,147.02,147.0,6.8009]
[1751770975127,10.00779973,147.01,147.0,6.8009]
[1751770975326,10.00763427,147.01,147.0,6.8009]
[1751770975933,10.00763424,147.01,146.99,6.8013]
[1751770976233,6.7996,147.03,146.99,6.8013]
[1751770976436,18.87701176,147.02,146.99,6.8013]
[1751770976634,10.0088754,147.01,146.99,6.8013]
[1751770976932,6.7996,147.03,146.99,6.8013]
[1751770977236,18.87810811,147.02,146.99,6.8013]
[1751770977433,10.0088754,147.01,146.99,6.8013]